[Event "89th GER-ch"]
[Site "Dresden"]
[Date "2018.08.08"]
[Round "6"]
[White "Svane, Frederik"]
[Black "Armbrust, Florian"]
[Result "1/2-1/2"]
[ECO "D78"]
[WhiteElo "2292"]
[BlackElo "2300"]
[Annotator "NA"]
[PlyCount "80"]
[EventDate "2018.08.03"]
[EventType "swiss"]
[EventCountry "GER"]
[SourceTitle "playchess.com"]
[Source "ChessBase"]
[SourceQuality "1"]
[TimeControl "40/5400+30:1800+30"]

1. c4 c6 2. Nf3 d5 3. g3 Nf6 4. Bg2 g6 5. O-O Bg7 6. d4 O-O 7. b3 Ne4 8. Bb2 Nd7 9. Nbd2 Ndf6 10. Nxe4 Nxe4 11. Nd2 Nd6 12. e3 Be6 13. Qe2 dxc4 14. Nxc4 Nxc4 15. bxc4 Qb6 16. Rfb1 Qa6 17. Bf1 Qa4 18. Bc3 b6 19. Qd1 Qxd1 20. Rxd1 c5 21. Rac1 cxd4 22. exd4 Rac8 23. d5 Bg4 24. Bxg7 Kxg7 25. Re1 Rc7 26. Rc3 Rd8 27. Rce3 Kf8 28. a4 Bc8 29. a5 bxa5 30. Ra3 Ba6 31. Rxa5 Bxc4 32. Bxc4 Rxc4 33. Rxa7 Rxd5 34. Rexe7 Rf5 35. Re2 h5 36. h4 Rcc5 37. Rae7 Kg7 38. Kg2 Rc3 39. R7e3 Rxe3 40. Rxe3 Rf6 {(=)} 1/2-1/2

[Event "89th GER-ch"]
[Site "Dresden"]
[Date "2018.08.08"]
[Round "6"]
[White "Rehberg, Raphael"]
[Black "Plassmann, Dominik"]
[Result "1/2-1/2"]
[ECO "B38"]
[WhiteElo "2234"]
[BlackElo "2186"]
[Annotator "NA"]
[PlyCount "52"]
[EventDate "2018.08.03"]
[EventType "swiss"]
[EventCountry "GER"]
[SourceTitle "playchess.com"]
[Source "ChessBase"]
[SourceQuality "1"]
[TimeControl "40/5400+30:1800+30"]

1. e4 c5 2. Nf3 g6 3. d4 cxd4 4. Nxd4 Bg7 5. c4 Nc6 6. Be3 Nf6 7. Nc3 d6 8. Be2 O-O 9. O-O Nd7 10. Qd2 Nxd4 11. Bxd4 Bxd4 12. Qxd4 Qb6 13. Qxb6 Nxb6 14. Nd5 Nxd5 15. cxd5 f5 16. f3 fxe4 17. fxe4 Bd7 18. Rac1 Rxf1+ 19. Bxf1 Rc8 20. Rxc8+ Bxc8 21. Kf2 Kg7 22. Ke3 Kf6 23. Kd4 Kg5 24. Ke3 Kf6 25. Kd4 Kg5 26. Ke3 Kf6 {(=)} 1/2-1/2

[Event "89th GER-ch"]
[Site "Dresden"]
[Date "2018.08.08"]
[Round "6"]
[White "Heimrath, Reiner"]
[Black "Mueller, Nick"]
[Result "0-1"]
[ECO "D79"]
[WhiteElo "2200"]
[BlackElo "2313"]
[Annotator "NA"]
[PlyCount "104"]
[EventDate "2018.08.03"]
[EventType "swiss"]
[EventCountry "GER"]
[SourceTitle "playchess.com"]
[Source "ChessBase"]
[SourceQuality "1"]
[TimeControl "40/5400+30:1800+30"]

1. Nf3 d5 2. g3 g6 3. Bg2 Bg7 4. c4 c6 5. cxd5 cxd5 6. O-O Nf6 7. Nc3 O-O 8. d4 Ne4 9. Qb3 Nxc3 10. bxc3 Nc6 11. Nd2 e6 12. a4 b6 13. Re1 Na5 14. Qb1 Bb7 15. Nb3 Nc4 16. a5 Qd7 17. Bf4 Rfc8 18. Rc1 Bf8 19. h4 Nd6 20. Nd2 b5 21. a6 Bc6 22. Be5 Rab8 23. Qd3 Rb6 24. Qf3 Ne8 25. g4 f5 26. gxf5 exf5 27. Qh3 Ba8 28. h5 g5 29. Qh1 Rh6 30. c4 bxc4 31. Ra5 Qf7 32. Bxd5 Bxd5 33. Qxd5 Qxd5 34. Rxd5 c3 35. Nb3 Rxa6 36. Nc5 Ra3 37. Rc2 h6 38. Kg2 Ng7 39. Bxg7 Bxg7 40. e3 f4 41. Kf3 fxe3 42. fxe3 a5 43. Ke4 a4 44. Rd7 Bf8 45. Ne6 Rb3 46. Kd3 Ra8 47. Nxf8 a3 48. Ng6 a2 49. Rf2 c2+ 50. Kxc2 Rb2+ 51. Kxb2 a1=Q+ 52. Kc2 Qa4+ 0-1

[Event "89th GER-ch"]
[Site "Dresden"]
[Date "2018.08.08"]
[Round "6"]
[White "Adiyaman, Rene"]
[Black "Zude, Arno"]
[Result "1/2-1/2"]
[ECO "C55"]
[WhiteElo "2097"]
[BlackElo "2373"]
[Annotator "NA"]
[PlyCount "94"]
[EventDate "2018.08.03"]
[EventType "swiss"]
[EventCountry "GER"]
[SourceTitle "playchess.com"]
[Source "ChessBase"]
[SourceQuality "1"]
[TimeControl "40/5400+30:1800+30"]

1. e4 e5 2. Nf3 Nc6 3. Bc4 Nf6 4. d3 Be7 5. O-O O-O 6. Re1 d6 7. a4 Na5 8. Ba2 c5 9. c3 Nc6 10. Na3 h6 11. Bd2 a6 12. h3 Re8 13. Nc4 Be6 14. Ne3 Bxa2 15. Rxa2 Bf8 16. Nf5 d5 17. Nh2 dxe4 18. dxe4 Qd7 19. b3 Rad8 20. Ng4 Nxg4 21. Qxg4 Kh7 22. Be3 Qe6 23. Bxc5 g6 24. Bxf8 Rxf8 25. Ne3 Qxb3 26. Ree2 Qxc3 27. Nd5 Qc1+ 28. Kh2 f5 29. Qh4 Qg5 30. Qxg5 hxg5 31. Reb2 Rf7 32. Rb6 Kg7 33. Rab2 Na5 34. Re6 fxe4 35. Ne3 Rd4 36. Ng4 Nc6 37. Nxe5 Nxe5 38. Rxe5 Rxa4 39. Rb6 Rc4 40. Ree6 Rc6 41. Rexc6 bxc6 42. Rxc6 Rxf2 43. Rxa6 Rf6 44. Ra4 Rf4 45. Kg3 Kf6 46. Ra6+ Kf5 47. Ra5+ Kf6 {(=)} 1/2-1/2

[Event "89th GER-ch"]
[Site "Dresden"]
[Date "2018.08.08"]
[Round "6"]
[White "Proschmann, Tino"]
[Black "Brustkern, Juergen"]
[Result "0-1"]
[ECO "B13"]
[WhiteElo "2092"]
[BlackElo "2219"]
[Annotator "NA"]
[PlyCount "52"]
[EventDate "2018.08.03"]
[EventType "swiss"]
[EventCountry "GER"]
[SourceTitle "playchess.com"]
[Source "ChessBase"]
[SourceQuality "1"]
[TimeControl "40/5400+30:1800+30"]

1. e4 c6 2. d4 d5 3. exd5 cxd5 4. Bd3 Nc6 5. c3 g6 6. Nf3 Bg7 7. O-O Nh6 8. Re1 O-O 9. Bf4 f6 10. c4 Nb4 11. cxd5 Nxd3 12. Qxd3 g5 13. Bd2 Nf5 14. Bb4 g4 15. Nfd2 Qxd5 16. Qb3 Qxb3 17. Nxb3 Kf7 18. Nc3 Rd8 19. Ne2 b6 20. Rac1 Rd7 21. Rc2 Bb7 22. Rec1 a5 23. Bd2 a4 24. Na1 Ba6 25. Be3 Rad8 26. Nc3 Nxd4 0-1

[Event "89th GER-ch"]
[Site "Dresden"]
[Date "2018.08.08"]
[Round "6.1"]
[White "Buhmann, Rainer"]
[Black "Kvetny, Mark"]
[Result "1-0"]
[ECO "B90"]
[WhiteElo "2581"]
[BlackElo "2421"]
[Annotator "ChessBase"]
[PlyCount "81"]
[EventDate "2018.08.03"]
[EventType "swiss"]
[EventCountry "GER"]
[SourceTitle "playchess.com"]
[Source "ChessBase"]
[SourceQuality "1"]
[TimeControl "40/5400+30:1800+30"]

1. e4 {[%emt 1:30:27]} c5 {[%emt 1:30:12]} 2. Nf3 {[%emt 1:30:48]} d6 {[%emt 1:30:36]} 3. d4 {[%emt 1:30:39]} cxd4 {[%emt 1:30:56]} 4. Nxd4 {[%emt 1:31:00]} Nf6 {[%emt 1:31:18]} 5. Nc3 {[%emt 1:31:12]} a6 {[%emt 1:31:35]} 6. Be3 {[%emt 1:31:18]} Ng4 {[%emt 1:31:33]} 7. Bc1 {[%emt 1:31:10]} Nf6 {[%emt 1:31:30]} 8. f3 {[%emt 1:31:32]} e5 {[%emt 1:30:57]} 9. Nb3 {[%emt 1:31:40]} Be6 {[%emt 1:31:12]} 10. Be3 {[%emt 1:31:42]} Nbd7 {[%emt 1:30:59]} 11. g4 {[%emt 1:28:37]} Nb6 {[%emt 1:29:09]} 12. g5 {[%emt 1:22:18]} Nfd7 {[%emt 1:29:28]} 13. Qd2 {[%emt 1:17:25]} Be7 {[%emt 1:29:16]} 14. h4 {[%emt 1:10:52]} h6 {[%emt 1:05:02]} 15. Rg1 {[%emt 1:03:04]} hxg5 {[%emt 1:02:21]} 16. hxg5 {[%emt 1:02:08]} Qc7 {[%emt 1:00:22]} 17. O-O-O {[%emt 0:59:40]} O-O-O {[%emt 0:46:27]} 18. Nd5 {[%emt 0:39:44]} Bxd5 {[%emt 0:43:46]} 19. exd5 {[%emt 0:40:12]} f6 {[%emt 0:39:01]} 20. gxf6 {[%emt 0:32:31]} Nxf6 {[%emt 0:36:31]} 21. Qa5 {[%emt 0:30:01]} Na8 {[%emt 0:29:38]} 22. Rxg7 {[%emt 0:28:41]} Qxa5 {[%emt 0:28:51]} 23. Nxa5 {[%emt 0:29:07]} Rh7 {[%emt 0:28:18]} 24. Rxh7 {[%emt 0:21:31]} Nxh7 {[%emt 0:28:44]} 25. Bh3+ {[%emt 0:20:45]} Kb8 {[%emt 0:22:54]} 26. Rg1 {[%emt 0:20:35]} Nf6 {[%emt 0:20:29]} 27. c4 {[%emt 0:20:10]} Rg8 {[%emt 0:19:28]} 28. Rxg8+ {[%emt 0:19:57]} Nxg8 {[%emt 0:19:57]} 29. Kc2 {[%emt 0:18:06]} Bd8 {[%emt 0:19:44]} 30. b4 {[%emt 0:18:01]} Nf6 {[%emt 0:19:27]} 31. Kd3 {[%emt 0:15:33]} Bb6 {[%emt 0:15:29]} 32. Bg5 {[%emt 0:14:06]} Nh5 {[%emt 0:15:09]} 33. Bg4 {[%emt 0:04:39]} Nf4+ {[%emt 0:14:15]} 34. Ke4 {[%emt 0:04:56]} Ne2 {[%emt 0:14:01]} 35. Kd3 {[%emt 0:03:44]} Nf4+ {[%emt 0:11:10]} 36. Ke4 {[%emt 0:03:05]} Ne2 {[%emt 0:11:25]} 37. Bd2 {[%emt 0:01:32]} Bd8 {[%emt 0:05:31]} 38. Be1 {[%emt 0:00:46]} Kc7 {[%emt 0:03:07]} 39. c5 {[%emt 0:00:36]} b6 {[%emt 0:00:03]} 40. cxd6+ {[%emt 0:00:22]} Kxd6 {[%emt 0:00:07]} 41. Nc4+ {[%emt 0:00:14]} 1-0

[Event "89th GER-ch"]
[Site "Dresden"]
[Date "2018.08.08"]
[Round "6.2"]
[White "Langrock, Hannes"]
[Black "Poetsch, Hagen"]
[Result "0-1"]
[ECO "D73"]
[WhiteElo "2370"]
[BlackElo "2513"]
[Annotator "ChessBase"]
[PlyCount "72"]
[EventDate "2018.08.03"]
[EventType "swiss"]
[EventCountry "GER"]
[SourceTitle "playchess.com"]
[Source "ChessBase"]
[SourceQuality "1"]
[TimeControl "40/5400+30:1800+30"]

1. d4 {[%emt 1:30:27]} g6 {[%emt 1:30:20]} 2. c4 {[%emt 1:28:13]} Nf6 {[%emt 1:30:22]} 3. g3 {[%emt 1:26:59]} c5 {[%emt 1:30:15]} 4. Nf3 {[%emt 1:25:36]} cxd4 {[%emt 1:28:51]} 5. Nxd4 {[%emt 1:25:52]} Bg7 {[%emt 1:25:11]} 6. Bg2 {[%emt 1:26:10]} d5 {[%emt 1:23:49]} 7. cxd5 {[%emt 1:24:03]} Nxd5 {[%emt 1:22:16]} 8. O-O {[%emt 1:23:17]} O-O {[%emt 1:22:41]} 9. Na3 {[%emt 1:10:08]} Nc6 {[%emt 1:12:40]} 10. Nxc6 {[%emt 1:08:25]} bxc6 {[%emt 1:13:05]} 11. Qa4 {[%emt 1:06:04]} Qb6 {[%emt 1:10:19]} 12. e4 {[%emt 0:56:44]} Nc7 {[%emt 1:02:18]} 13. Rb1 {[%emt 0:49:13]} Rd8 {[%emt 0:52:23]} 14. Be3 {[%emt 0:45:35]} Qa6 {[%emt 0:48:43]} 15. Qb4 {[%emt 0:43:43]} Be6 {[%emt 0:43:47]} 16. b3 {[%emt 0:33:49]} Rab8 {[%emt 0:40:42]} 17. Qc5 {[%emt 0:34:06]} Nb5 {[%emt 0:34:49]} 18. Nxb5 {[%emt 0:33:48]} cxb5 {[%emt 0:35:05]} 19. Qxa7 {[%emt 0:27:49]} Qxa7 {[%emt 0:34:04]} 20. Bxa7 {[%emt 0:28:14]} Ra8 {[%emt 0:31:42]} 21. Bc5 {[%emt 0:28:35]} Rxa2 {[%emt 0:31:49]} 22. Rfd1 {[%emt 0:15:52]} Rxd1+ {[%emt 0:26:50]} 23. Rxd1 {[%emt 0:16:19]} Bc3 {[%emt 0:21:36]} 24. b4 {[%emt 0:07:54]} Bd2 {[%emt 0:18:53]} 25. Bxe7 {[%emt 0:05:44]} Bb3 {[%emt 0:18:51]} 26. Rb1 {[%emt 0:05:05]} Bc2 {[%emt 0:19:11]} 27. Rf1 {[%emt 0:05:29]} Ra4 {[%emt 0:16:53]} 28. e5 {[%emt 0:04:15]} Bxb4 {[%emt 0:16:05]} 29. Rc1 {[%emt 0:03:17]} Bf5 {[%emt 0:15:09]} 30. Bf6 {[%emt 0:01:34]} Ra2 {[%emt 0:10:11]} 31. Bf1 {[%emt 0:00:36]} Bd2 {[%emt 0:07:52]} 32. Rc7 {[%emt 0:01:03]} Be1 {[%emt 0:07:38]} 33. Bd3 {[%emt 0:00:12]} Bxf2+ {[%emt 0:07:24]} 34. Kh1 {[%emt 0:00:35]} Bg4 {[%emt 0:03:51]} 35. Be4 {[%emt 0:00:39]} Ra1+ {[%emt 0:03:58]} 36. Kg2 {[%emt 0:01:05]} Bb6 {[%emt 0:04:23]} 0-1

[Event "89th GER-ch"]
[Site "Dresden"]
[Date "2018.08.08"]
[Round "6.3"]
[White "Gschnitzer, Adrian"]
[Black "Miller, Eduard"]
[Result "1/2-1/2"]
[ECO "C50"]
[WhiteElo "2333"]
[BlackElo "2309"]
[Annotator "NA"]
[PlyCount "75"]
[EventDate "2018.08.03"]
[EventType "swiss"]
[EventCountry "GER"]
[SourceTitle "playchess.com"]
[Source "ChessBase"]
[SourceQuality "1"]
[TimeControl "40/5400+30:1800+30"]

1. e4 {[%emt 1:30:28]} e5 {[%emt 1:30:23]} 2. Nf3 {[%emt 1:30:52]} Nc6 {[%emt 1:30:48]} 3. Bc4 {[%emt 1:31:14]} Bc5 {[%emt 1:31:12]} 4. O-O {[%emt 1:31:32]} Nf6 {[%emt 1:31:37]} 5. d3 {[%emt 1:31:53]} O-O {[%emt 1:31:55]} 6. a4 {[%emt 1:32:04]} a6 {[%emt 1:30:14]} 7. Nbd2 {[%emt 1:31:55]} Ba7 {[%emt 1:29:35]} 8. Re1 {[%emt 1:26:57]} Re8 {[%emt 1:17:10]} 9. c3 {[%emt 1:22:20]} h6 {[%emt 1:10:41]} 10. Qb3 {[%emt 1:11:36]} Qe7 {[%emt 0:53:45]} 11. a5 {[%emt 1:11:25]} d6 {[%emt 0:53:50]} 12. Nf1 {[%emt 1:05:04]} Nd8 {[%emt 0:39:37]} 13. Ng3 {[%emt 1:03:06]} Be6 {[%emt 0:39:39]} 14. d4 {[%emt 0:54:40]} exd4 {[%emt 0:24:10]} 15. cxd4 {[%emt 0:54:53]} Bxc4 16. Qxc4 {[%emt 0:55:12]} d5 {[%emt 0:23:51]} 17. exd5 {[%emt 0:54:16]} Qd7 {[%emt 0:24:17]} 18. Rxe8+ {[%emt 0:50:44]} Nxe8 {[%emt 0:24:39]} 19. Ne5 {[%emt 0:33:50]} Qb5 {[%emt 0:23:30]} 20. Qxb5 {[%emt 0:33:58]} axb5 {[%emt 0:23:48]} 21. a6 {[%emt 0:33:15]} Bb8 {[%emt 0:16:12]} 22. Nd7 {[%emt 0:33:11]} bxa6 {[%emt 0:16:29]} 23. Nf5 {[%emt 0:28:31]} a5 {[%emt 0:14:16]} 24. Bf4 {[%emt 0:23:56]} Nb7 {[%emt 0:13:55]} 25. Ne7+ {[%emt 0:15:49]} Kh7 {[%emt 0:14:02]} 26. Nc5 {[%emt 0:10:49]} Nbd6 {[%emt 0:03:50]} 27. b3 {[%emt 0:10:47]} g5 {[%emt 0:03:20]} 28. Be5 {[%emt 0:09:55]} f6 {[%emt 0:03:12]} 29. Bg3 {[%emt 0:09:31]} a4 {[%emt 0:02:52]} 30. bxa4 {[%emt 0:09:29]} bxa4 {[%emt 0:03:18]} 31. Nc6 {[%emt 0:08:55]} a3 {[%emt 0:03:23]} 32. Nd7 {[%emt 0:08:06]} Nc4 {[%emt 0:02:16]} 33. Ncxb8 {[%emt 0:02:47]} Nd2 {[%emt 0:01:47]} 34. Nc6 {[%emt 0:02:02]} Nb3 {[%emt 0:01:17]} 35. Ra2 {[%emt 0:01:44]} Nc1 {[%emt 0:01:30]} 36. Ra1 {[%emt 0:01:23]} Nb3 {[%emt 0:01:55]} 37. Ra2 {[%emt 0:01:00]} Nc1 {[%emt 0:02:18]} 38. Ra1 {[%emt 0:00:59]} 1/2-1/2

[Event "89th GER-ch"]
[Site "Dresden"]
[Date "2018.08.08"]
[Round "6.4"]
[White "Gungl, Theo"]
[Black "Reuker, Jari"]
[Result "1/2-1/2"]
[ECO "C68"]
[WhiteElo "2283"]
[BlackElo "2404"]
[Annotator "NA"]
[PlyCount "97"]
[EventDate "2018.08.03"]
[EventType "swiss"]
[EventCountry "GER"]
[SourceTitle "playchess.com"]
[Source "ChessBase"]
[SourceQuality "1"]
[TimeControl "40/5400+30:1800+30"]

1. e4 {[%emt 1:30:28]} e5 {[%emt 1:30:20]} 2. Nf3 {[%emt 1:30:53]} Nc6 {[%emt 1:30:44]} 3. Bb5 {[%emt 1:31:19]} a6 {[%emt 1:31:05]} 4. Bxc6 {[%emt 1:31:43]} dxc6 {[%emt 1:31:30]} 5. O-O {[%emt 1:32:06]} Qf6 {[%emt 1:31:32]} 6. d4 {[%emt 1:32:30]} exd4 {[%emt 1:31:57]} 7. Bg5 {[%emt 1:32:53]} Qd6 {[%emt 1:32:23]} 8. Nxd4 {[%emt 1:33:14]} Be7 $14 {[%emt 1:32:43] LiveBook: 103 Games} 9. Bxe7 {[%emt 1:32:13]} Nxe7 {[%emt 1:33:05]} 10. Nc3 {[%emt 1:32:34]} Bd7 {[%emt 1:33:28]} 11. Nb3 {[%emt 1:32:43]} Qxd1 {[%emt 1:33:51]} 12. Raxd1 {[%emt 1:33:09]} b6 {[%emt 1:34:14]} 13. Rd2 {[%emt 1:33:31]} O-O-O {[%emt 1:34:36]} 14. Rfd1 {[%emt 1:33:54]} f5 {[%emt 1:34:47]} 15. f3 {[%emt 1:31:01]} c5 {[%emt 1:32:28]} 16. Nc1 {[%emt 1:29:42]} fxe4 {[%emt 1:28:49]} 17. Nxe4 {[%emt 1:30:06]} Rhf8 {[%emt 1:20:17]} 18. Ne2 {[%emt 1:20:11]} h6 {[%emt 1:13:48]} 19. N2c3 {[%emt 1:15:43]} Nf5 {[%emt 1:01:36]} 20. Kf2 {[%emt 1:06:40]} Rf7 {[%emt 0:50:04]} 21. Nd5 {[%emt 0:53:59]} Rdf8 {[%emt 0:46:44]} 22. Ng3 {[%emt 0:52:45]} Nh4 {[%emt 0:40:03]} 23. Nf1 {[%emt 0:34:29]} g5 {[%emt 0:34:43]} 24. Nfe3 {[%emt 0:32:38]} Ng6 {[%emt 0:31:38]} 25. Nc4 {[%emt 0:25:20]} Bb5 {[%emt 0:26:17]} 26. Nce3 {[%emt 0:22:54]} h5 {[%emt 0:24:22]} 27. h3 {[%emt 0:20:47]} Bc6 {[%emt 0:21:22]} 28. Kg1 {[%emt 0:19:33]} Kb7 {[%emt 0:20:29]} 29. Nf1 {[%emt 0:17:02]} h4 {[%emt 0:17:17]} 30. Nfe3 {[%emt 0:16:33]} Ne5 {[%emt 0:13:30]} 31. Re2 {[%emt 0:12:01]} Bb5 {[%emt 0:13:00]} 32. Ree1 {[%emt 0:11:15]} a5 {[%emt 0:09:55]} 33. Nc3 {[%emt 0:07:26]} Bc6 {[%emt 0:09:28]} 34. Ned5 {[%emt 0:07:22]} Nc4 {[%emt 0:08:15]} 35. b3 {[%emt 0:06:46]} Na3 {[%emt 0:06:04]} 36. Re2 {[%emt 0:06:52]} Rd8 {[%emt 0:05:54]} 37. Ne3 {[%emt 0:05:24]} Re8 {[%emt 0:05:58]} 38. Kf2 {[%emt 0:04:45]} b5 {[%emt 0:02:21]} 39. Nb1 {[%emt 0:02:25]} Nxb1 {[%emt 0:01:59]} 40. Rxb1 {[%emt 0:02:53]} Rd7 {[%emt 0:00:10]} 41. c4 {[%emt 0:22:19]} b4 {[%emt 0:29:00]} 42. Ng4 {[%emt 0:14:41]} Red8 {[%emt 0:23:09]} 43. Ne5 {[%emt 0:13:41]} Rd2 {[%emt 0:18:06]} 44. Rbe1 {[%emt 0:11:33]} Be8 {[%emt 0:18:36]} 45. Rxd2 {[%emt 0:09:01]} Rxd2+ {[%emt 0:17:23]} 46. Re2 {[%emt 0:09:28]} Rd1 {[%emt 0:17:39]} 47. Ke3 {[%emt 0:06:54]} Rd4 {[%emt 0:08:11]} 48. Rd2 {[%emt 0:06:54]} Rd6 {[%emt 0:08:34]} 49. Re2 {[%emt 0:04:55]} 1/2-1/2

[Event "89th GER-ch"]
[Site "Dresden"]
[Date "2018.08.09"]
[Round "7"]
[White "Armbrust, Florian"]
[Black "Gungl, Theo"]
[Result "1/2-1/2"]
[ECO "B52"]
[WhiteElo "2300"]
[BlackElo "2283"]
[Annotator "ChessBase"]
[PlyCount "88"]
[EventDate "2018.08.03"]
[EventType "swiss"]
[EventCountry "GER"]
[SourceTitle "playchess.com"]
[Source "ChessBase"]
[SourceQuality "1"]
[TimeControl "40/5400+30:1800+30"]

1. e4 c5 2. Nf3 d6 3. Bb5+ Bd7 4. Bxd7+ Qxd7 5. c4 Nf6 6. Nc3 Nc6 7. d4 cxd4 8. Nxd4 g6 9. f3 Bg7 10. Be3 O-O 11. Rc1 Rac8 12. b3 Rfd8 13. O-O e6 14. Qd2 d5 15. cxd5 exd5 16. Nxc6 Rxc6 17. Nxd5 Nxd5 18. Qxd5 Qxd5 19. exd5 Rxd5 20. Rxc6 bxc6 21. Rc1 Bd4 22. Bxd4 Rxd4 23. a4 Rd3 24. Rxc6 Rxb3 25. Rc7 Ra3 26. Rxa7 Ra2 27. g4 h6 28. h4 Kg7 29. a5 Kg8 30. a6 Kg7 31. Kf1 Kf6 32. Ke1 Rh2 33. g5+ hxg5 34. hxg5+ Kxg5 35. Rxf7 Ra2 36. a7 Kh4 37. f4 g5 38. f5 Kg4 39. Kd1 Kf4 40. Kc1 g4 41. Kb1 Ra4 42. f6 Kf5 43. Rg7 Kxf6 44. Rxg4 Rxa7 1/2-1/2

[Event "89th GER-ch"]
[Site "Dresden"]
[Date "2018.08.09"]
[Round "7.2"]
[White "Miller, Eduard"]
[Black "Colpe, Malte"]
[Result "1-0"]
[ECO "A07"]
[WhiteElo "2309"]
[BlackElo "2384"]
[Annotator "NA"]
[PlyCount "59"]
[EventDate "2018.08.03"]
[EventType "swiss"]
[EventCountry "GER"]
[SourceTitle "playchess.com"]
[Source "ChessBase"]
[SourceQuality "1"]
[TimeControl "40/5400+30:1800+30"]

1. Nf3 {[%emt 1:30:27]} d5 {[%emt 1:30:21]} 2. g3 {[%emt 1:30:53]} Bg4 {[%emt 1:30:43]} 3. Bg2 {[%emt 1:31:19]} Nd7 {[%emt 1:31:00]} 4. d4 {[%emt 1:31:39]} e6 {[%emt 1:29:44]} 5. O-O {[%emt 1:31:56]} Bd6 {[%emt 1:23:19]} 6. c4 {[%emt 1:31:47]} c6 {[%emt 1:22:35]} 7. cxd5 {[%emt 1:31:52]} exd5 {[%emt 1:21:40]} 8. Nc3 {[%emt 1:32:13]} Ngf6 {[%emt 1:20:40]} 9. Ne1 {[%emt 1:32:16]} O-O {[%emt 1:15:16]} 10. f3 {[%emt 1:31:56]} Bh5 {[%emt 1:13:01]} 11. Nd3 {[%emt 1:32:16]} Re8 {[%emt 1:05:10]} 12. Nf4 {[%emt 1:32:27]} Bxf4 {[%emt 0:49:57]} 13. Bxf4 {[%emt 1:31:08]} a5 {[%emt 0:46:29]} 14. Qd2 {[%emt 1:21:16]} Nb6 {[%emt 0:43:58]} 15. b3 {[%emt 1:21:07]} a4 $11 {[%emt 0:43:19]} 16. e4 {[%emt 1:17:15]} dxe4 {[%emt 0:40:22]} 17. fxe4 {[%emt 1:17:34]} axb3 {[%emt 0:39:57]} 18. axb3 {[%emt 1:09:30]} Rxa1 {[%emt 0:39:55]} 19. Rxa1 {[%emt 1:09:52]} Bg6 {[%emt 0:39:57]} 20. d5 {[%emt 1:01:31]} Qe7 {[%emt 0:21:13]} 21. Be3 {[%emt 0:21:42]} Nbd7 {[%emt 0:19:40]} 22. Ra7 {[%emt 0:19:19]} Ne5 {[%emt 0:05:55]} 23. d6 {[%emt 0:13:01]} Qd7 {[%emt 0:05:49]} 24. Qd4 {[%emt 0:11:36]} Bh5 {[%emt 0:05:18]} 25. Na4 {[%emt 0:05:15]} Nf3+ {[%emt 0:05:22]} 26. Bxf3 {[%emt 0:05:41]} Bxf3 {[%emt 0:05:48]} 27. Nc5 {[%emt 0:05:38]} Qh3 {[%emt 0:06:09]} 28. Qd2 {[%emt 0:04:50]} b6 {[%emt 0:05:36]} 29. d7 {[%emt 0:04:32]} Rd8 {[%emt 0:05:23]} 30. Ra8 {[%emt 0:04:56]} 1-0

[Event "89th GER-ch"]
[Site "Dresden"]
[Date "2018.08.09"]
[Round "7.3"]
[White "Mueller, Nick"]
[Black "Gschnitzer, Adrian"]
[Result "1/2-1/2"]
[ECO "B37"]
[WhiteElo "2313"]
[BlackElo "2333"]
[Annotator "NA"]
[PlyCount "80"]
[EventDate "2018.08.03"]
[EventType "swiss"]
[EventCountry "GER"]
[SourceTitle "playchess.com"]
[Source "ChessBase"]
[SourceQuality "1"]
[TimeControl "40/5400+30:1800+30"]

1. e4 {[%emt 1:30:27]} c5 {[%emt 1:30:24]} 2. Nf3 {[%emt 1:30:49]} Nc6 {[%emt 1:30:49]} 3. d4 {[%emt 1:31:04]} cxd4 {[%emt 1:31:13]} 4. Nxd4 {[%emt 1:31:26]} g6 {[%emt 1:31:37]} 5. c4 {[%emt 1:31:35]} Bg7 {[%emt 1:31:58]} 6. Nc2 {[%emt 1:31:29]} d6 {[%emt 1:32:09]} 7. Be2 {[%emt 1:31:40]} Be6 {[%emt 1:32:28]} 8. O-O {[%emt 1:27:21]} Rc8 {[%emt 1:32:39]} 9. Ne3 {[%emt 1:23:13]} Nf6 {[%emt 1:30:49]} 10. Nc3 {[%emt 1:20:39]} O-O {[%emt 1:28:58]} 11. Bd2 {[%emt 1:14:14]} Nd7 {[%emt 1:27:01]} 12. Rb1 {[%emt 1:11:30]} a6 {[%emt 1:15:03]} 13. Kh1 {[%emt 1:06:58]} Nd4 {[%emt 1:06:11]} 14. f4 $11 {[%emt 1:03:51]} f5 {[%emt 0:59:55]} 15. exf5 {[%emt 1:00:22]} Nxf5 {[%emt 0:50:38]} 16. Ne4 {[%emt 0:43:44]} Kh8 {[%emt 0:45:37]} 17. Ng5 {[%emt 0:42:40]} Bg8 {[%emt 0:42:19]} 18. Nxf5 {[%emt 0:39:33]} Rxf5 {[%emt 0:32:52]} 19. Bd3 {[%emt 0:39:06]} Rf6 {[%emt 0:28:22]} 20. Qe2 {[%emt 0:21:35]} Nc5 {[%emt 0:18:41]} 21. Bc2 {[%emt 0:18:54]} Ne6 {[%emt 0:12:31]} 22. Nxe6 {[%emt 0:10:26]} Bxe6 {[%emt 0:11:16]} 23. b3 {[%emt 0:09:36]} Bf5 {[%emt 0:09:18]} 24. Bc3 {[%emt 0:09:32]} Rf7 {[%emt 0:05:09]} 25. Bxg7+ {[%emt 0:09:08]} Kxg7 {[%emt 0:05:32]} 26. Be4 {[%emt 0:09:27]} Qd7 {[%emt 0:04:28]} 27. Rbe1 {[%emt 0:08:21]} Bxe4 {[%emt 0:04:38]} 28. Qxe4 {[%emt 0:08:45]} Rcf8 {[%emt 0:04:52]} 29. Rf3 {[%emt 0:08:50]} Qc6 {[%emt 0:02:53]} 30. h3 {[%emt 0:02:06]} Qxe4 {[%emt 0:00:52]} 31. Rxe4 {[%emt 0:02:33]} Rc8 {[%emt 0:01:07]} 32. Rfe3 {[%emt 0:01:38]} Kf8 {[%emt 0:01:34]} 33. Kh2 {[%emt 0:00:53]} Ke8 {[%emt 0:01:29]} 34. g4 {[%emt 0:00:34]} Kd7 {[%emt 0:01:25]} 35. Kg3 {[%emt 0:00:56]} Rc5 {[%emt 0:01:08]} 36. a4 {[%emt 0:00:13]} a5 {[%emt 0:01:07]} 37. Rd3 {[%emt 0:00:15]} Rf8 {[%emt 0:00:29]} 38. Rde3 {[%emt 0:00:35]} Rf7 {[%emt 0:00:50]} 39. Rd3 {[%emt 0:01:01]} Rf8 {[%emt 0:01:08]} 40. Rde3 {[%emt 0:01:27]} Rf7 {[%emt 0:01:33]} 1/2-1/2